[Event "Late-Titled-Tuesday-Blitz-October-10-2023"]
[Site "Chess.com"]
[Date "2023.10.10"]
[Round "8"]
[White "ExchangeAB"]
[Black "Djager97"]
[Result "0-1"]
[WhiteElo "2494"]
[BlackElo "2627"]
[TimeControl "180+1"]
[EndTime "15:23:16 PDT"]
[Termination "Djager97 won by resignation"]

1. d4 {[%clk 0:03:00.9]} 1... Nf6 {[%clk 0:02:59.5]} 2. Nc3 {[%clk 0:03:00.7]}
2... d5 {[%clk 0:02:59.5]} 3. Bf4 {[%clk 0:03:00.9]} 3... a6 {[%clk 0:02:59.6]}
4. e3 {[%clk 0:03:01.1]} 4... e6 {[%clk 0:03:00.1]} 5. Nf3 {[%clk 0:03:00.9]}
5... c5 {[%clk 0:03:00.4]} 6. dxc5 {[%clk 0:02:59.5]} 6... Bxc5 {[%clk
0:02:59.5]} 7. Bd3 {[%clk 0:03:00.2]} 7... Nc6 {[%clk 0:02:51.5]} 8. e4 {[%clk
0:03:00.4]} 8... h6 {[%clk 0:02:38.4]} 9. O-O {[%clk 0:02:57.4]} 9... O-O {[%clk
0:02:37.4]} 10. exd5 {[%clk 0:02:56.2]} 10... exd5 {[%clk 0:02:37.2]} 11. Ne5
{[%clk 0:02:29.6]} 11... Be6 {[%clk 0:02:29.2]} 12. Nxc6 {[%clk 0:02:28]} 12...
bxc6 {[%clk 0:02:30.1]} 13. Na4 {[%clk 0:02:24.3]} 13... Bd6 {[%clk 0:02:24.5]}
14. Bxd6 {[%clk 0:02:23.6]} 14... Qxd6 {[%clk 0:02:25.4]} 15. Be2 {[%clk
0:02:12.3]} 15... c5 {[%clk 0:02:23.9]} 16. Bf3 {[%clk 0:02:06.6]} 16... Rad8
{[%clk 0:02:22.7]} 17. b3 {[%clk 0:02:05]} 17... d4 {[%clk 0:02:19.1]} 18. Nb2
{[%clk 0:02:01.4]} 18... Bd5 {[%clk 0:02:08.7]} 19. Nc4 {[%clk 0:01:54.1]} 19...
Bxc4 {[%clk 0:02:03.5]} 20. bxc4 {[%clk 0:01:55]} 20... Rfe8 {[%clk 0:01:59.5]}
21. Qd3 {[%clk 0:01:48.4]} 21... Nd7 {[%clk 0:01:57.4]} 22. Bd5 {[%clk
0:01:35.7]} 22... Nb6 {[%clk 0:01:39.2]} 23. Bf3 {[%clk 0:01:30.3]} 23... Qe6
{[%clk 0:01:39.1]} 24. g3 {[%clk 0:01:14.9]} 24... Nxc4 {[%clk 0:01:30.6]} 25.
Rfb1 {[%clk 0:01:01.1]} 25... Ne5 {[%clk 0:01:26]} 26. Qd1 {[%clk 0:01:00.8]}
26... d3 {[%clk 0:01:01.2]} 27. Be4 {[%clk 0:00:42.8]} 27... d2 {[%clk
0:00:55.8]} 28. c4 {[%clk 0:00:36.9]} 28... Nxc4 {[%clk 0:00:53.1]} 29. Bb7
{[%clk 0:00:29.9]} 29... Qd7 {[%clk 0:00:41.6]} 30. Qb3 {[%clk 0:00:20.6]} 30...
Qd4 {[%clk 0:00:36.4]} 31. Bxa6 {[%clk 0:00:17]} 31... Re2 {[%clk 0:00:36.1]}
32. Rf1 {[%clk 0:00:14.8]} 32... Re4 {[%clk 0:00:14.8]} 33. a4 {[%clk
0:00:14.2]} 33... Ne5 {[%clk 0:00:13.2]} 34. Bb7 {[%clk 0:00:12.4]} 34... c4
{[%clk 0:00:11.8]} 35. Qa3 {[%clk 0:00:10.2]} 35... c3 {[%clk 0:00:12.1]} 36.
Bxe4 {[%clk 0:00:09.5]} 36... Qxe4 {[%clk 0:00:12]} 37. Qxc3 {[%clk 0:00:09.7]}
37... Nf3+ {[%clk 0:00:12.1]} 38. Kg2 {[%clk 0:00:09.2]} 38... Ne1+ {[%clk
0:00:09.4]} 39. Kh3 {[%clk 0:00:09.5]} 39... Qg2+ {[%clk 0:00:08.2]} 40. Kg4
{[%clk 0:00:09.3]} 40... Qxf1 {[%clk 0:00:08.9]} 41. Qxd2 {[%clk 0:00:08.2]}
41... Rxd2 {[%clk 0:00:08]} 0-1

[Event "Late-Titled-Tuesday-Blitz-October-10-2023"]
[Site "Chess.com"]
[Date "2023.10.10"]
[Round "8"]
[White "annacramling"]
[Black "Bala-Afiada"]
[Result "0-1"]
[WhiteElo "2187"]
[BlackElo "1952"]
[TimeControl "180+1"]
[EndTime "15:23:17 PDT"]
[Termination "Bala-Afiada won by checkmate"]

1. d4 {[%clk 0:03:00.9]} 1... Nf6 {[%clk 0:02:59.3]} 2. c4 {[%clk 0:02:56.2]}
2... e6 {[%clk 0:02:59.2]} 3. Nc3 {[%clk 0:02:52]} 3... d5 {[%clk 0:02:56.7]} 4.
cxd5 {[%clk 0:02:51]} 4... exd5 {[%clk 0:02:55.6]} 5. Bg5 {[%clk 0:02:49.3]}
5... Be7 {[%clk 0:02:53.9]} 6. e3 {[%clk 0:02:47.5]} 6... O-O {[%clk 0:02:52.2]}
7. Bd3 {[%clk 0:02:44]} 7... c6 {[%clk 0:02:50.1]} 8. Qc2 {[%clk 0:02:43.9]}
8... h6 {[%clk 0:02:48.2]} 9. Bh4 {[%clk 0:02:43.1]} 9... Bg4 {[%clk 0:02:39.7]}
10. h3 {[%clk 0:02:30]} 10... Bh5 {[%clk 0:02:27.3]} 11. g4 {[%clk 0:02:29.9]}
11... Bg6 {[%clk 0:02:15.7]} 12. Bxg6 {[%clk 0:02:29.6]} 12... fxg6 {[%clk
0:02:16.6]} 13. Qxg6 {[%clk 0:02:29.8]} 13... Nbd7 {[%clk 0:02:13.9]} 14. Nge2
{[%clk 0:02:23.4]} 14... Qe8 {[%clk 0:02:08.9]} 15. Qxe8 {[%clk 0:02:22.6]}
15... Raxe8 {[%clk 0:02:08.4]} 16. Nf4 {[%clk 0:02:23]} 16... g5 {[%clk
0:02:05.1]} 17. Ng6 {[%clk 0:02:16.6]} 17... gxh4 {[%clk 0:02:02.1]} 18. Nxf8
{[%clk 0:02:16.7]} 18... Nxf8 {[%clk 0:01:56.5]} 19. O-O-O {[%clk 0:02:16.3]}
19... Ne4 {[%clk 0:01:49]} 20. Nxe4 {[%clk 0:02:10.8]} 20... dxe4 {[%clk
0:01:49.9]} 21. d5 {[%clk 0:02:11.3]} 21... cxd5 {[%clk 0:01:38.2]} 22. Rxd5
{[%clk 0:02:12.2]} 22... Bg5 {[%clk 0:01:25.9]} 23. Rhd1 {[%clk 0:02:07]} 23...
Ne6 {[%clk 0:01:16]} 24. Rd7 {[%clk 0:02:02.3]} 24... Nc5 {[%clk 0:01:10.7]} 25.
Rc7 {[%clk 0:02:01]} 25... Nd3+ {[%clk 0:01:03.6]} 26. Rxd3 {[%clk 0:01:51]}
26... exd3 {[%clk 0:01:02.9]} 27. Rxb7 {[%clk 0:01:49.1]} 27... Rc8+ {[%clk
0:01:00.4]} 28. Kd2 {[%clk 0:01:48.6]} 28... Rc2+ {[%clk 0:00:58.3]} 29. Kxd3
{[%clk 0:01:48.4]} 29... Rxf2 {[%clk 0:00:57.6]} 30. a4 {[%clk 0:01:04.1]} 30...
Rf3 {[%clk 0:00:52.9]} 31. Rxa7 {[%clk 0:00:57.6]} 31... Rxe3+ {[%clk 0:00:49]}
32. Kc2 {[%clk 0:00:56.9]} 32... Rxh3 {[%clk 0:00:46.2]} 33. a5 {[%clk
0:00:50.1]} 33... Rh2+ {[%clk 0:00:42.3]} 34. Kc3 {[%clk 0:00:28.7]} 34... Bf6+
{[%clk 0:00:41.1]} 35. Kd3 {[%clk 0:00:26]} 35... Rxb2 {[%clk 0:00:37]} 36. Ke4
{[%clk 0:00:26.3]} 36... h3 {[%clk 0:00:30.7]} 37. Kf5 {[%clk 0:00:26.3]} 37...
Bd4 {[%clk 0:00:27.5]} 38. Re7 {[%clk 0:00:10.6]} 38... Rf2+ {[%clk 0:00:24.3]}
39. Kg6 {[%clk 0:00:07.9]} 39... Rf6+ {[%clk 0:00:22.1]} 40. Kh5 {[%clk
0:00:08.2]} 40... h2 {[%clk 0:00:19.2]} 41. Re1 {[%clk 0:00:05.1]} 41... Bg1
{[%clk 0:00:18.6]} 42. a6 {[%clk 0:00:01.9]} 42... h1=Q# {[%clk 0:00:16.4]} 0-1

[Event "Late-Titled-Tuesday-Blitz-October-10-2023"]
[Site "Chess.com"]
[Date "2023.10.10"]
[Round "8"]
[White "IngOscarArdila"]
[Black "K_alena13"]
[Result "1-0"]
[WhiteElo "2314"]
[BlackElo "2151"]
[TimeControl "180+1"]
[EndTime "15:23:18 PDT"]
[Termination "IngOscarArdila won by resignation"]

1. h3 {[%clk 0:02:54.7]} 1... d5 {[%clk 0:02:56.5]} 2. a3 {[%clk 0:02:55.6]}
2... Nf6 {[%clk 0:02:53.1]} 3. Nf3 {[%clk 0:02:55.9]} 3... h6 {[%clk 0:02:51.4]}
4. Ng1 {[%clk 0:02:56.2]} 4... Bf5 {[%clk 0:02:49.8]} 5. Nf3 {[%clk 0:02:56.6]}
5... e6 {[%clk 0:02:47]} 6. d3 {[%clk 0:02:56.4]} 6... c6 {[%clk 0:02:38.6]} 7.
Nbd2 {[%clk 0:02:56.6]} 7... Nbd7 {[%clk 0:02:38.5]} 8. g4 {[%clk 0:02:56.1]}
8... Bh7 {[%clk 0:02:36.7]} 9. Bg2 {[%clk 0:02:56.5]} 9... Bc5 {[%clk
0:02:33.7]} 10. O-O {[%clk 0:02:55.4]} 10... O-O {[%clk 0:02:31.2]} 11. b4
{[%clk 0:02:55.7]} 11... Bd6 {[%clk 0:02:28.9]} 12. Bb2 {[%clk 0:02:55.6]} 12...
a5 {[%clk 0:02:25.5]} 13. c3 {[%clk 0:02:39.2]} 13... Bb8 {[%clk 0:02:06.4]} 14.
Re1 {[%clk 0:02:37.3]} 14... Qc7 {[%clk 0:01:59.7]} 15. e4 {[%clk 0:02:34.8]}
15... dxe4 {[%clk 0:01:25.1]} 16. dxe4 {[%clk 0:02:33.4]} 16... Ne5 {[%clk
0:01:24.8]} 17. c4 {[%clk 0:02:28.5]} 17... Nd3 {[%clk 0:01:11.3]} 18. Bxf6
{[%clk 0:02:23.6]} 18... Nxe1 {[%clk 0:00:56.6]} 19. Qxe1 {[%clk 0:02:05.6]}
19... gxf6 {[%clk 0:00:56]} 20. Qe3 {[%clk 0:01:49.8]} 20... Qf4 {[%clk
0:00:52.7]} 21. Qe1 {[%clk 0:01:37.6]} 21... Rd8 {[%clk 0:00:32.6]} 22. b5
{[%clk 0:01:36.9]} 22... Bc7 {[%clk 0:00:26.8]} 23. bxc6 {[%clk 0:01:28.6]}
23... bxc6 {[%clk 0:00:27.7]} 24. Rb1 {[%clk 0:01:28.6]} 24... Rab8 {[%clk
0:00:22.3]} 25. c5 {[%clk 0:01:25.6]} 25... Rxb1 {[%clk 0:00:20.4]} 26. Nxb1
{[%clk 0:01:21.1]} 26... Bxe4 {[%clk 0:00:19.1]} 27. Nbd2 {[%clk 0:01:20.9]}
27... Rxd2 {[%clk 0:00:09.5]} 28. Qxd2 {[%clk 0:01:21.4]} 28... Qxd2 {[%clk
0:00:03.7]} 29. Nxd2 {[%clk 0:01:21.5]} 29... Bxg2 {[%clk 0:00:04.6]} 30. Kxg2
{[%clk 0:01:21.6]} 30... Be5 {[%clk 0:00:03.7]} 31. Nc4 {[%clk 0:01:21.4]} 31...
Bc3 {[%clk 0:00:03]} 32. f4 {[%clk 0:01:15.4]} 32... Kf8 {[%clk 0:00:03]} 33.
Kf3 {[%clk 0:01:15.7]} 33... Ke7 {[%clk 0:00:03.3]} 34. Ke4 {[%clk 0:01:16.1]}
34... Kd7 {[%clk 0:00:03.6]} 35. Kd3 {[%clk 0:01:16.6]} 35... Be1 {[%clk
0:00:02.2]} 36. Ke2 {[%clk 0:01:17.1]} 36... Bc3 {[%clk 0:00:01.5]} 37. Kd3
{[%clk 0:01:17.3]} 37... Be1 {[%clk 0:00:02.1]} 38. Nd6 {[%clk 0:01:13.9]} 38...
a4 {[%clk 0:00:01.1]} 39. Nxf7 {[%clk 0:01:13.6]} 39... Ke7 {[%clk 0:00:01.6]}
40. Nxh6 {[%clk 0:01:13.7]} 40... Bf2 {[%clk 0:00:01.9]} 41. Kc4 {[%clk
0:01:13.4]} 41... Be3 {[%clk 0:00:02.3]} 42. g5 {[%clk 0:01:04.8]} 42... Bxf4
{[%clk 0:00:02]} 43. gxf6+ {[%clk 0:01:05.3]} 43... Kxf6 {[%clk 0:00:02.9]} 44.
Ng4+ {[%clk 0:01:06]} 44... Kf5 {[%clk 0:00:03]} 45. Nf2 {[%clk 0:01:04.9]}
45... Bc1 {[%clk 0:00:02.9]} 46. Kb4 {[%clk 0:01:03.4]} 46... Be3 {[%clk
0:00:03.5]} 47. Nd3 {[%clk 0:01:03.4]} 47... Ke4 {[%clk 0:00:03.9]} 48. Nb2
{[%clk 0:01:02.1]} 48... Kd5 {[%clk 0:00:04]} 49. Nxa4 {[%clk 0:01:02.1]} 49...
Bf2 {[%clk 0:00:04.3]} 50. Nb6+ {[%clk 0:00:59.9]} 50... Ke5 {[%clk 0:00:03.8]}
51. Nd7+ {[%clk 0:00:59.6]} 51... Kd5 {[%clk 0:00:03.7]} 52. a4 {[%clk
0:00:57.8]} 52... Be1+ {[%clk 0:00:03.9]} 53. Kb3 {[%clk 0:00:57.7]} 53... Ba5
{[%clk 0:00:03.8]} 54. h4 {[%clk 0:00:56.6]} 54... e5 {[%clk 0:00:04.2]} 55. h5
{[%clk 0:00:56.6]} 55... Ke6 {[%clk 0:00:04.4]} 56. h6 {[%clk 0:00:54.1]} 56...
Kf7 {[%clk 0:00:04.2]} 57. Nxe5+ {[%clk 0:00:53.4]} 57... Kg8 {[%clk 0:00:04.3]}
58. Nxc6 {[%clk 0:00:53.8]} 58... Bc7 {[%clk 0:00:03.3]} 59. Ne7+ {[%clk
0:00:53.2]} 59... Kh7 {[%clk 0:00:02.7]} 60. Nd5 {[%clk 0:00:53.7]} 60... Kxh6
{[%clk 0:00:03.4]} 61. Nxc7 {[%clk 0:00:53.8]} 1-0

[Event "Late-Titled-Tuesday-Blitz-October-10-2023"]
[Site "Chess.com"]
[Date "2023.10.10"]
[Round "8"]
[White "Firouzja2003"]
[Black "Dedic8"]
[Result "1-0"]
[WhiteElo "3074"]
[BlackElo "2884"]
[TimeControl "180+1"]
[EndTime "15:23:25 PDT"]
[Termination "Firouzja2003 won by checkmate"]

1. e4 {[%clk 0:03:00.9]} 1... e5 {[%clk 0:02:59.8]} 2. Nf3 {[%clk 0:03:01.2]}
2... Nc6 {[%clk 0:03:00.5]} 3. Bb5 {[%clk 0:03:00.8]} 3... a6 {[%clk 0:03:01]}
4. Ba4 {[%clk 0:03:00.9]} 4... Nf6 {[%clk 0:03:01.7]} 5. O-O {[%clk 0:03:01.2]}
5... b5 {[%clk 0:03:01.7]} 6. Bb3 {[%clk 0:03:01.3]} 6... Bc5 {[%clk 0:03:02.4]}
7. c3 {[%clk 0:03:01.6]} 7... d6 {[%clk 0:03:01.7]} 8. d4 {[%clk 0:03:02.2]}
8... Bb6 {[%clk 0:03:01.5]} 9. Be3 {[%clk 0:03:02.9]} 9... O-O {[%clk
0:03:00.3]} 10. Nbd2 {[%clk 0:03:02.2]} 10... Rb8 {[%clk 0:03:00.1]} 11. h3
{[%clk 0:03:02]} 11... h6 {[%clk 0:03:00]} 12. Re1 {[%clk 0:03:01.8]} 12... Re8
{[%clk 0:03:00.2]} 13. a3 {[%clk 0:02:54.4]} 13... a5 {[%clk 0:03:00]} 14. Rc1
{[%clk 0:02:44]} 14... a4 {[%clk 0:02:59.3]} 15. Bc2 {[%clk 0:02:38.9]} 15...
Na5 {[%clk 0:02:57.5]} 16. Bd3 {[%clk 0:02:36.9]} 16... Bd7 {[%clk 0:02:56.7]}
17. Bb1 {[%clk 0:01:59.2]} 17... c5 {[%clk 0:02:41.1]} 18. dxe5 {[%clk
0:01:59.2]} 18... dxe5 {[%clk 0:02:41.2]} 19. c4 {[%clk 0:01:40.7]} 19... b4
{[%clk 0:02:17.3]} 20. Qe2 {[%clk 0:01:33.2]} 20... Qe7 {[%clk 0:02:09.2]} 21.
Bc2 {[%clk 0:01:28]} 21... b3 {[%clk 0:01:39.4]} 22. Bb1 {[%clk 0:01:13.1]}
22... Nc6 {[%clk 0:01:38.9]} 23. Rf1 {[%clk 0:00:58.6]} 23... Nd4 {[%clk
0:01:35.9]} 24. Bxd4 {[%clk 0:00:59]} 24... cxd4 {[%clk 0:01:29.2]} 25. Ne1
{[%clk 0:00:59.3]} 25... Ba5 {[%clk 0:01:11.6]} 26. Ndf3 {[%clk 0:00:57.9]}
26... Rbc8 {[%clk 0:00:59.7]} 27. Nd3 {[%clk 0:00:56.6]} 27... Qd6 {[%clk
0:00:58.1]} 28. c5 {[%clk 0:00:41]} 28... Qb8 {[%clk 0:00:45.1]} 29. Ndxe5
{[%clk 0:00:41.4]} 29... Rxe5 {[%clk 0:00:42.9]} 30. Nxe5 {[%clk 0:00:42.3]}
30... Qxe5 {[%clk 0:00:43.5]} 31. f4 {[%clk 0:00:43]} 31... Qh5 {[%clk
0:00:37.4]} 32. Qd3 {[%clk 0:00:28.7]} 32... Rxc5 {[%clk 0:00:25.1]} 33. e5
{[%clk 0:00:23.8]} 33... Rxc1 {[%clk 0:00:10.7]} 34. Rxc1 {[%clk 0:00:24.7]}
34... Nd5 {[%clk 0:00:08.9]} 35. Qa6 {[%clk 0:00:18.8]} 35... Kf8 {[%clk
0:00:01.7]} 36. Qxa5 {[%clk 0:00:15]} 36... Qe2 {[%clk 0:00:02]} 37. Qc5+ {[%clk
0:00:14.5]} 37... Ke8 {[%clk 0:00:02.7]} 38. Qxd4 {[%clk 0:00:12.7]} 38... Ne3
{[%clk 0:00:02.7]} 39. Be4 {[%clk 0:00:11.2]} 39... g5 {[%clk 0:00:02.2]} 40. e6
{[%clk 0:00:10.1]} 40... fxe6 {[%clk 0:00:02.6]} 41. Bg6+ {[%clk 0:00:08.4]}
41... Ke7 {[%clk 0:00:02.5]} 42. Qg7+ {[%clk 0:00:08.4]} 42... Kd6 {[%clk
0:00:03.1]} 43. Qf8+ {[%clk 0:00:08.9]} 43... Kd5 {[%clk 0:00:03.1]} 44. Qc5#
{[%clk 0:00:09.5]} 1-0

[Event "Late-Titled-Tuesday-Blitz-October-10-2023"]
[Site "Chess.com"]
[Date "2023.10.10"]
[Round "8"]
[White "Jarming"]
[Black "NFChess13"]
[Result "0-1"]
[WhiteElo "2747"]
[BlackElo "2647"]
[TimeControl "180+1"]
[EndTime "15:23:27 PDT"]
[Termination "NFChess13 won on time"]

1. e4 {[%clk 0:03:00.9]} 1... e5 {[%clk 0:02:59.3]} 2. Nf3 {[%clk 0:03:00.9]}
2... Nf6 {[%clk 0:02:59.6]} 3. Nxe5 {[%clk 0:02:55.1]} 3... d5 {[%clk
0:02:59.8]} 4. exd5 {[%clk 0:02:50.5]} 4... Qxd5 {[%clk 0:03:00.7]} 5. d4 {[%clk
0:02:50.6]} 5... Nc6 {[%clk 0:03:00.2]} 6. Nc3 {[%clk 0:02:45.2]} 6... Bb4
{[%clk 0:02:59.3]} 7. Nf3 {[%clk 0:02:43.4]} 7... Bg4 {[%clk 0:02:56.3]} 8. Be2
{[%clk 0:02:43.5]} 8... O-O-O {[%clk 0:02:53.2]} 9. O-O {[%clk 0:02:43.5]} 9...
Qh5 {[%clk 0:02:53.5]} 10. Be3 {[%clk 0:02:38.3]} 10... Bd6 {[%clk 0:02:52.4]}
11. g3 {[%clk 0:02:35.5]} 11... Rhe8 {[%clk 0:02:50.3]} 12. Nb5 {[%clk
0:02:16.3]} 12... Bf8 {[%clk 0:02:39]} 13. c4 {[%clk 0:02:14.4]} 13... Ne5
{[%clk 0:02:33.8]} 14. Kg2 {[%clk 0:01:31]} 14... Qh3+ {[%clk 0:02:18.4]} 15.
Kh1 {[%clk 0:01:25.3]} 15... Bxf3+ {[%clk 0:02:17.4]} 16. Bxf3 {[%clk
0:01:24.9]} 16... Nfg4 {[%clk 0:02:18.3]} 17. Bxg4+ {[%clk 0:01:25.1]} 17...
Nxg4 {[%clk 0:02:19.2]} 18. Nxa7+ {[%clk 0:01:10.5]} 18... Kd7 {[%clk
0:02:10.6]} 19. Qxg4+ {[%clk 0:01:04.9]} 19... Qxg4 {[%clk 0:02:09.3]} 20. Nb5
{[%clk 0:01:05.8]} 20... Qf3+ {[%clk 0:02:06]} 21. Kg1 {[%clk 0:01:05.2]} 21...
c6 {[%clk 0:02:03.5]} 22. Nc3 {[%clk 0:01:04.9]} 22... Bb4 {[%clk 0:02:02.3]}
23. Rac1 {[%clk 0:01:03.3]} 23... Re6 {[%clk 0:01:56.6]} 24. d5 {[%clk 0:01:03]}
24... Rg6 {[%clk 0:01:51.4]} 25. Rfd1 {[%clk 0:00:57.2]} 25... Kc8 {[%clk
0:01:49.3]} 26. Rd4 {[%clk 0:00:50.3]} 26... Bxc3 {[%clk 0:01:44.2]} 27. Rxc3
{[%clk 0:00:45.9]} 27... Rg4 {[%clk 0:01:36.5]} 28. Rd2 {[%clk 0:00:33.7]} 28...
Qf5 {[%clk 0:01:32.5]} 29. Ra3 {[%clk 0:00:30.5]} 29... Kc7 {[%clk 0:01:14.2]}
30. Rb3 {[%clk 0:00:23.3]} 30... Rxc4 {[%clk 0:01:06.6]} 31. Bb6+ {[%clk
0:00:22.5]} 31... Kc8 {[%clk 0:01:07.2]} 32. Bxd8 {[%clk 0:00:22.4]} 32... Rc1+
{[%clk 0:01:07.8]} 33. Kg2 {[%clk 0:00:22.4]} 33... Qe4+ {[%clk 0:01:08.4]} 34.
Kh3 {[%clk 0:00:22.9]} 34... Rc5 {[%clk 0:00:45.7]} 35. Bb6 {[%clk 0:00:15.4]}
35... Rxd5 {[%clk 0:00:43.8]} 36. Rxd5 {[%clk 0:00:16.3]} 36... Qxd5 {[%clk
0:00:44.3]} 37. Be3 {[%clk 0:00:17.2]} 37... g5 {[%clk 0:00:42]} 38. Ra3 {[%clk
0:00:12.2]} 38... Kb8 {[%clk 0:00:34.1]} 39. Ba7+ {[%clk 0:00:09.8]} 39... Kc7
{[%clk 0:00:33.7]} 40. Be3 {[%clk 0:00:10.7]} 40... f6 {[%clk 0:00:29.3]} 41.
Ra8 {[%clk 0:00:09.3]} 41... h5 {[%clk 0:00:28.8]} 42. Rf8 {[%clk 0:00:06.6]}
42... Qf3 {[%clk 0:00:23.3]} 43. Rf7+ {[%clk 0:00:03.2]} 43... Kd6 {[%clk
0:00:20]} 44. Bb6 {[%clk 0:00:03.3]} 44... Qf5+ {[%clk 0:00:16.6]} 45. Kg2
{[%clk 0:00:01.4]} 45... Qd5+ {[%clk 0:00:16.9]} 0-1

[Event "Late-Titled-Tuesday-Blitz-October-10-2023"]
[Site "Chess.com"]
[Date "2023.10.10"]
[Round "8"]
[White "nitpicker"]
[Black "dorpato"]
[Result "0-1"]
[WhiteElo "2250"]
[BlackElo "2087"]
[TimeControl "180+1"]
[EndTime "15:23:29 PDT"]
[Termination "dorpato won on time"]

1. d4 {[%clk 0:03:00.9]} 1... Nf6 {[%clk 0:02:56.8]} 2. c4 {[%clk 0:02:58.7]}
2... g6 {[%clk 0:02:55.4]} 3. Nc3 {[%clk 0:02:55.1]} 3... d5 {[%clk 0:02:54.4]}
4. Nf3 {[%clk 0:02:55.2]} 4... c6 {[%clk 0:02:53.2]} 5. Qb3 {[%clk 0:02:52.9]}
5... Bg7 {[%clk 0:02:49.6]} 6. Bg5 {[%clk 0:02:52.5]} 6... O-O {[%clk
0:02:42.4]} 7. e3 {[%clk 0:02:52.4]} 7... dxc4 {[%clk 0:02:37.3]} 8. Bxc4 {[%clk
0:02:50.5]} 8... Nbd7 {[%clk 0:02:34.7]} 9. h3 {[%clk 0:02:40.2]} 9... Nb6
{[%clk 0:02:26.9]} 10. Be2 {[%clk 0:02:39.9]} 10... Be6 {[%clk 0:02:13.3]} 11.
Qc2 {[%clk 0:02:39.6]} 11... h6 {[%clk 0:02:09.6]} 12. Bh4 {[%clk 0:02:36.8]}
12... Nbd5 {[%clk 0:01:58.3]} 13. e4 {[%clk 0:02:17.9]} 13... Nxc3 {[%clk
0:01:53]} 14. bxc3 {[%clk 0:02:18.8]} 14... Qa5 {[%clk 0:01:45.1]} 15. O-O
{[%clk 0:02:16.9]} 15... Rfe8 {[%clk 0:01:36.9]} 16. c4 {[%clk 0:02:14.3]} 16...
Rac8 {[%clk 0:01:23.2]} 17. Rab1 {[%clk 0:02:02.8]} 17... Qc7 {[%clk 0:01:10]}
18. Bg3 {[%clk 0:01:58.4]} 18... Qd7 {[%clk 0:01:02.4]} 19. Rfd1 {[%clk
0:01:44.3]} 19... a6 {[%clk 0:00:51.8]} 20. Ne5 {[%clk 0:01:40.4]} 20... Qd8
{[%clk 0:00:47.3]} 21. Rxb7 {[%clk 0:01:37.1]} 21... Nd7 {[%clk 0:00:34.8]} 22.
f4 {[%clk 0:01:09.8]} 22... Nxe5 {[%clk 0:00:22.9]} 23. dxe5 {[%clk 0:01:01.8]}
23... Qa5 {[%clk 0:00:22.2]} 24. f5 {[%clk 0:00:52.4]} 24... Bxe5 {[%clk
0:00:19.7]} 25. Bxe5 {[%clk 0:00:42.5]} 25... Qxe5 {[%clk 0:00:20.6]} 26. fxe6
{[%clk 0:00:42.7]} 26... Qxe6 {[%clk 0:00:20.5]} 27. c5 {[%clk 0:00:40.3]} 27...
Red8 {[%clk 0:00:20]} 28. Rbb1 {[%clk 0:00:30.7]} 28... Rd7 {[%clk 0:00:16.9]}
29. Bxa6 {[%clk 0:00:28.5]} 29... Rcd8 {[%clk 0:00:16.4]} 30. Rxd7 {[%clk
0:00:24.8]} 30... Rxd7 {[%clk 0:00:16.9]} 31. Rb8+ {[%clk 0:00:17.3]} 31... Kg7
{[%clk 0:00:15.6]} 32. Qc3+ {[%clk 0:00:16.5]} 32... f6 {[%clk 0:00:15]} 33. Bd3
{[%clk 0:00:08.7]} 33... Qxa2 {[%clk 0:00:13.8]} 34. Rb6 {[%clk 0:00:07.1]}
34... Ra7 {[%clk 0:00:11.7]} 35. Kh2 {[%clk 0:00:07.1]} 35... Qe6 {[%clk
0:00:11.4]} 36. Bc2 {[%clk 0:00:05.5]} 36... Ra4 {[%clk 0:00:10.4]} 37. Bd3
{[%clk 0:00:05.2]} 37... Ra2 {[%clk 0:00:09.4]} 38. Rb2 {[%clk 0:00:04.6]} 38...
Ra7 {[%clk 0:00:08.7]} 39. Rb6 {[%clk 0:00:04.4]} 39... Rd7 {[%clk 0:00:08.7]}
40. Rb2 {[%clk 0:00:03.3]} 40... Kf7 {[%clk 0:00:08.2]} 41. Re2 {[%clk
0:00:03.4]} 41... Kg7 {[%clk 0:00:08.5]} 42. Qc4 {[%clk 0:00:03.5]} 42... Qe5+
{[%clk 0:00:08.3]} 43. Kg1 {[%clk 0:00:03.7]} 43... Rd4 {[%clk 0:00:08.5]} 44.
Qc2 {[%clk 0:00:03.1]} 44... e6 {[%clk 0:00:06.7]} 45. Re3 {[%clk 0:00:02.8]}
45... Ra4 {[%clk 0:00:06.7]} 0-1